bitfinex/quotes_ETHUSD_20240921
["timestamp","ask_amount","ask_price","bid_price","bid_amount"]
[1726881266659,5.4081,2561.9,2561.2,0.07808763]
[1726881266980,5.4081,2561.9,2561.1,2.3232]
[1726881268249,0.55,2561.9,2561.2,0.07808059]
[1726881268455,0.55,2561.9,2561.3,2.3232]
[1726881269878,0.55,2561.9,2561.3,2.3268864]
[1726881273287,0.55,2562.1,2561.4,0.07807328]
[1726881273487,7.37,2562.3,2561.4,2.62256817]
[1726881273840,7.37,2562.3,2561.4,2.62625457]
[1726881274754,0.55,2562.2,2561.4,2.62625457]
[1726881275381,0.55,2562.2,2561.4,2.3076864]
[1726881278454,3.55,2562.2,2561.4,2.3076864]
[1726881280456,3.55,2562.2,2561.5,2.52836871]
[1726881280652,3.0,2562.2,2561.5,2.52836871]
[1726881281431,3.0,2562.2,2561.5,2.4503]
[1726881282209,0.55,2562.1,2561.5,2.4503]
[1726881282993,3.0231,2562.1,2561.5,2.4503]
[1726881283210,0.55,2561.9,2561.5,2.4503]
[1726881283382,0.55,2562.1,2561.5,2.4503]
[1726881287011,0.40715896,2562.0,2561.7,2.4503]
[1726881289153,0.55,2561.9,2561.7,2.4503]
[1726881292116,0.55,2561.9,2561.4,2.4051864]
[1726881292460,3.55,2561.9,2561.4,2.4051864]
[1726881292712,5.13925878,2561.9,2561.4,2.4051864]
[1726881292867,3.55,2561.9,2561.4,2.4051864]
[1726881293221,0.55,2561.7,2561.4,2.4051864]
[1726881293546,0.55,2561.9,2561.4,2.4051864]
[1726881298576,2.13925878,2561.9,2561.4,2.4051864]
[1726881298781,5.13925878,2561.9,2561.4,0.0036864]
[1726881298956,2.13925878,2561.9,2561.4,0.0036864]
[1726881299156,0.40719185,2561.8,2561.4,0.0036864]
[1726881299341,0.55,2561.7,2561.4,0.0036864]
[1726881301262,11.20685823,2561.5,2561.4,0.0036864]
[1726881301586,11.64231336,2561.5,2561.4,0.0036864]
[1726881301741,11.23670305,2561.5,2561.4,0.0036864]
[1726881302272,11.23630273,2561.5,2561.4,0.0036864]
[1726881302479,11.64231336,2561.5,2561.4,0.0036864]
[1726881302857,3.55,2561.5,2561.4,0.0036864]
[1726881303057,2.895,2561.5,2561.4,0.0036864]
[1726881303369,0.40719185,2561.8,2561.5,2.3665]
[1726881304872,0.40236567,2561.9,2561.5,2.3665]
[1726881305758,0.55,2561.8,2561.5,2.3665]
[1726881308669,0.55,2561.8,2561.5,2.60351864]
[1726881310388,0.55,2561.8,2561.5,2.3665]
[1726881317087,1.61907652,2562.5,2561.8,2.3151]
[1726881317290,0.40713728,2562.0,2561.9,6.10404918]
[1726881317449,1.61907652,2562.9,2562.0,2.3151]
[1726881317649,1.61907652,2563.0,2562.2,2.3151]
[1726881318594,0.55,2562.5,2562.2,2.3151]
[1726881320944,4.61907652,2563.1,2562.3,0.07804795]
[1726881321148,0.55,2563.0,2562.2,2.3151]
[1726881321460,3.55,2563.1,2562.4,2.3151]
[1726881321866,3.40130203,2563.2,2562.5,0.07804355]
[1726881322160,4.04657652,2563.5,2562.6,2.3151]
[1726881322349,2.4275,2563.5,2562.6,2.3151]
[1726881323285,5.4275,2563.5,2562.6,2.3151]
[1726881323694,0.55,2563.4,2562.6,2.3151]
[1726881324185,3.55,2563.4,2562.6,2.3151]
[1726881326051,0.55,2563.4,2562.7,2.3151]
[1726881326252,0.55,2563.5,2562.7,2.3151]
[1726881327109,3.0,2563.4,2562.7,2.3151]
[1726881327323,0.55,2563.3,2562.7,2.3151]
[1726881328624,0.55,2563.5,2562.7,2.3151]
[1726881329928,3.55,2563.3,2562.0,2.2825]
[1726881330135,3.55,2563.3,2562.1,2.2825]
[1726881330626,3.559526,2563.3,2562.2,2.2825]
[1726881331995,3.559526,2563.3,2562.2,2.36054692]
[1726881332319,3.559526,2563.3,2562.2,2.2825]
[1726881332487,0.55,2563.1,2562.2,2.2825]
[1726881333122,2.345,2562.8,2562.2,2.2825]
[1726881333288,0.55,2562.9,2562.2,2.2825]
[1726881333489,0.55,2562.6,2562.2,2.2825]
[1726881333983,0.08317109,2562.5,2562.2,2.2825]
[1726881334941,0.08317109,2562.5,2562.3,2.2792]
[1726881338320,0.08317109,2562.5,2562.4,3.78894547]
[1726881338524,3.0,2563.0,2562.4,3.78894547]
[1726881338525,7.37,2563.1,2562.5,2.2792]
[1726881339293,0.40712055,2563.0,2562.5,2.2792]
[1726881339920,0.55,2562.9,2562.5,2.2792]
[1726881340332,0.55,2562.9,2562.5,2.50712]
[1726881341332,0.55,2562.9,2562.5,2.2792]
[1726881343330,0.55,2563.0,2562.5,2.2792]
[1726881343641,0.4071199,2562.9,2562.5,2.2792]
[1726881344138,0.4071199,2562.9,2562.8,3.71089945]
[1726881344343,0.4071199,2562.9,2562.8,6.06812796]
[1726881344635,0.009526,2563.2,2562.9,2.2792]
[1726881345200,0.009526,2563.2,2563.0,3.7889206]
[1726881345548,0.009526,2563.2,2563.1,2.2792]
[1726881348138,0.009526,2563.2,2562.1,3.0]
[1726881348139,0.009526,2563.2,2562.9,2.2792]
[1726881348845,0.55,2563.1,2562.6,2.2792]
[1726881349369,0.009526,2563.2,2562.6,2.2792]
[1726881349648,0.55,2563.0,2562.0,3.71089945]
[1726881349938,3.55,2563.0,2562.1,2.65678995]
[1726881350139,3.55,2563.0,2562.2,3.71089945]
[1726881350513,3.55,2563.0,2562.3,2.2857]
[1726881353142,2.4907,2562.9,2562.3,2.2857]
[1726881353349,2.4907,2562.9,2562.1,2.2857]
[1726881353350,0.55,2562.8,2562.1,2.2857]
[1726881353841,3.72042545,2563.2,2561.8,2.2857]
[1726881353842,0.55,2562.6,2561.8,2.2857]
[1726881354041,5.4907,2562.5,2561.4,2.2857]
[1726881354341,3.55,2562.4,2561.5,0.59965994]
[1726881355559,2.4277,2562.3,2561.4,2.3043]
[1726881355702,3.55,2562.2,2561.4,2.3043]
[1726881357775,3.55,2562.2,2561.1,2.3043]
[1726881357776,3.55,2562.0,2561.1,2.3043]
[1726881358113,0.55,2561.8,2561.1,2.3043]
[1726881358312,0.55,2561.8,2561.1,6.24838967]
[1726881359525,0.55,2561.8,2561.1,2.53749022]
[1726881360445,0.55,2561.4,2561.0,0.0276022]
[1726881360654,3.55,2561.4,2561.0,0.0276022]
[1726881360960,0.55,2561.2,2561.0,0.0276022]
[1726881361255,0.06647352,2561.3,2561.0,0.0276022]
[1726881361545,2.2601,2561.5,2561.0,0.63611237]
[1726881361546,0.55,2561.4,2561.0,0.63611237]
[1726881361757,0.06635671,2561.2,2561.0,0.63611237]
[1726881362043,0.55,2561.4,2561.0,0.0276022]
[1726881362343,0.55,2561.4,2561.0,2.3742022]
[1726881362549,0.06612167,2561.3,2561.0,2.3742022]
[1726881362715,0.55,2561.6,2561.0,2.3742022]
[1726881362909,0.55,2561.4,2561.0,2.3742022]
[1726881363140,0.06632618,2561.5,2561.0,2.61162242]
[1726881363339,0.40733789,2561.7,2561.1,3.78898234]
[1726881363539,0.06629823,2561.4,2561.0,2.61162242]
[1726881363740,0.40733789,2561.7,2561.0,2.61162242]
[1726881363941,0.06627412,2561.3,2561.0,2.61162242]
[1726881364170,2.66743789,2561.7,2561.0,2.61162242]
[1726881364379,0.06624383,2561.2,2561.0,2.3742022]
[1726881364674,2.66743789,2561.7,2561.0,2.3742022]
[1726881364884,0.06621971,2561.1,2561.0,2.3742022]
[1726881365052,0.55,2561.6,2561.0,2.3742022]
[1726881365583,0.06633722,2561.5,2561.0,2.3742022]
[1726881365785,0.55,2561.4,2561.0,2.3742022]
[1726881365990,0.06632713,2561.4,2561.0,2.3742022]
[1726881366142,0.55,2561.6,2561.0,2.3742022]
[1726881366477,0.06630302,2561.3,2561.0,2.3742022]
[1726881366784,0.06626955,2561.2,2561.0,2.3742022]
[1726881366947,0.06626955,2561.2,2561.0,2.61162242]
[1726881367275,0.55,2561.6,2561.0,2.61162242]
[1726881367486,0.06627347,2561.1,2561.0,2.61162242]
[1726881367835,0.06626729,2561.1,2561.0,2.61162242]
[1726881368139,0.55,2561.6,2561.0,2.61162242]
[1726881368380,0.55,2561.6,2561.1,0.63225219]
[1726881368684,0.55,2561.4,2561.1,0.63225219]
[1726881369177,0.06635534,2561.3,2561.1,0.63225219]
[1726881373108,0.06635534,2561.3,2561.0,2.61162242]
[1726881374388,2.9562,2561.2,2561.0,0.0276022]
[1726881374591,3.02252505,2561.2,2561.0,0.0276022]
[1726881378801,5.4062,2561.1,2561.0,0.0276022]
[1726881379105,8.36749156,2561.1,2561.0,0.0276022]
[1726881382202,16.17663156,2561.1,2561.0,0.0276022]
[1726881382499,2.345,2560.7,2560.2,0.0371282]
[1726881382656,2.345,2560.5,2560.2,0.0371282]
[1726881382855,3.02207626,2560.6,2560.2,0.0371282]
[1726881383062,0.56789101,2560.4,2560.2,0.0371282]
[1726881383278,0.50206301,2560.4,2560.2,0.0371282]
[1726881383477,0.06580387,2560.3,2560.2,0.0371282]
[1726881384678,0.61580387,2560.3,2560.2,0.0371282]
[1726881385063,0.61580387,2560.3,2560.2,2.3572282]
[1726881385576,0.06580387,2560.3,2560.2,0.0371282]
[1726881385808,2.47200387,2560.3,2560.2,0.0371282]
[1726881386309,0.06580387,2560.3,2560.2,0.0371282]
[1726881386818,0.61580387,2560.3,2560.2,0.0371282]
[1726881397973,3.06820387,2560.3,2560.2,0.0371282]
[1726881398139,3.06820387,2560.3,2557.5,4.00655957]
[1726881398140,3.55,2559.4,2558.5,2.3085]
[1726881398444,0.55,2559.2,2558.5,2.3085]
[1726881398642,0.06495814,2559.3,2558.8,2.38665608]
[1726881398806,2.4524,2559.7,2558.8,2.38665608]
[1726881398807,0.55,2559.5,2558.9,0.24237843]
[1726881399007,0.06269231,2559.2,2558.9,0.24237843]
[1726881399238,3.55,2559.6,2558.8,2.3085]
[1726881399448,0.55,2559.0,2558.8,2.3085]
[1726881399601,0.55,2559.0,2558.5,2.3085]
[1726881399801,0.06250704,2558.9,2558.5,2.3085]
[1726881400343,0.55,2558.8,2558.5,2.3085]
[1726881400697,0.61244792,2558.8,2558.5,2.3085]
[1726881401236,0.06244792,2558.8,2558.7,2.3456282]
[1726881401534,0.55,2558.8,2558.7,2.3456282]
[1726881401753,0.61229565,2558.8,2558.7,2.3456282]
[1726881402069,0.06229565,2558.8,2558.7,2.58019102]
[1726881402217,0.06229565,2558.8,2558.7,2.3456282]
[1726881402418,0.55,2559.3,2558.7,2.3456282]
[1726881403057,0.55,2559.1,2558.7,2.3456282]
[1726881403416,0.06220965,2559.0,2558.7,2.3456282]
[1726881403826,0.55,2558.9,2558.7,2.3456282]
[1726881404035,0.06211689,2558.9,2558.7,2.3456282]
[1726881404339,0.06211387,2558.8,2558.7,2.3456282]
[1726881404547,0.55,2558.8,2558.7,2.3456282]
[1726881404735,0.61231205,2558.8,2558.7,2.3456282]
[1726881406773,0.06231205,2558.8,2558.7,2.58019102]
[1726881406956,3.0,2559.4,2558.7,2.58019102]
[1726881407160,0.06229957,2558.8,2558.7,2.3456282]
[1726881407461,3.0,2559.4,2558.7,2.3456282]
[1726881407648,9.8224,2559.5,2558.7,2.3456282]
[1726881407649,0.06229957,2558.8,2558.7,2.3456282]
[1726881407820,3.0,2559.4,2558.7,2.3456282]
[1726881408021,0.06229957,2558.8,2558.7,2.3456282]
[1726881408221,3.55,2559.4,2558.7,2.3456282]
[1726881408416,0.06229957,2558.8,2558.7,2.3456282]
[1726881408617,3.55,2559.4,2558.7,2.3456282]
[1726881408816,3.55,2559.4,2558.7,0.0371282]
[1726881408817,3.06469957,2558.8,2558.7,0.0371282]
[1726881409064,3.0024,2558.8,2558.7,0.0371282]
[1726881409274,0.61231127,2558.8,2558.7,0.0371282]
[1726881410861,0.61231127,2558.8,2558.7,2.5326282]
[1726881411659,0.61231127,2558.8,2558.7,0.0371282]
[1726881414939,3.02591127,2558.8,2558.7,0.0371282]
[1726881415884,6.02591127,2558.8,2558.7,0.0371282]
[1726881418250,0.06231127,2558.8,2558.7,0.0371282]
[1726881418474,2.4136,2559.1,2558.7,0.0371282]
[1726881418629,0.0600134,2558.8,2558.7,0.0371282]
[1726881418831,2.4136,2559.1,2558.7,0.0371282]
[1726881419029,0.05990323,2558.8,2558.7,0.0371282]
[1726881419262,2.4136,2559.1,2558.7,0.0371282]
[1726881419465,0.05990323,2558.8,2558.7,0.0371282]
[1726881419765,2.4136,2559.1,2558.7,0.0371282]
[1726881419967,0.60987381,2558.8,2558.7,0.0371282]
[1726881420187,0.55,2559.0,2558.7,0.0371282]
[1726881420367,0.05994776,2558.8,2558.7,0.0371282]
[1726881420664,3.71089945,2559.5,2558.7,0.0371282]
[1726881420665,2.4136,2559.5,2558.7,2.3425282]
[1726881420873,0.05994776,2558.8,2558.7,2.3425282]
[1726881421040,2.4136,2559.5,2558.7,2.4206823]
[1726881421246,0.0600098,2558.8,2558.7,2.3425282]
[1726881421428,2.4136,2559.5,2558.7,2.3425282]
[1726881421633,0.0600098,2558.8,2558.7,2.3425282]
[1726881421849,0.55,2559.4,2558.7,2.3425282]
[1726881422037,0.06004092,2558.8,2558.7,2.3425282]
[1726881422366,0.55,2559.4,2558.7,2.3425282]
[1726881422530,0.55,2559.2,2558.7,0.0371282]
[1726881422730,3.55,2559.2,2558.7,0.0371282]
[1726881423052,0.55,2559.0,2558.7,0.0371282]
[1726881423391,0.06008618,2558.9,2558.7,0.0371282]
[1726881423534,2.9636,2558.8,2558.7,0.0371282]
[1726881423736,3.02362276,2558.8,2558.7,0.0371282]
[1726881424880,0.61002276,2558.8,2558.7,0.0371282]
[1726881425665,4.32092221,2558.8,2557.9,2.3425282]
[1726881425846,3.71089945,2558.5,2557.7,0.005]
[1726881426151,2.9636,2558.7,2558.1,3.71089945]
[1726881426152,0.60984647,2558.7,2558.1,3.71089945]
[1726881426352,0.0558657,2558.4,2557.9,3.71089945]
[1726881426569,0.55,2558.7,2557.9,3.71089945]
[1726881426778,0.05395839,2558.3,2557.9,3.71089945]
[1726881427091,0.052164,2558.2,2558.1,3.71089945]
[1726881427441,7.37,2559.2,2558.1,3.71089945]
[1726881427645,2.4136,2559.4,2558.3,3.71089945]
[1726881428386,0.55,2559.3,2558.3,3.71089945]
[1726881428742,0.55,2559.3,2558.5,3.71089945]
[1726881428944,0.55,2559.3,2558.6,2.76245968]
[1726881429243,0.55,2559.3,2558.6,2.6843054]
[1726881429436,0.55,2559.3,2558.6,2.76245967]
[1726881430049,0.55,2559.3,2558.6,2.6843054]
[1726881430250,10.14077832,2559.7,2558.7,2.47825425]
[1726881430454,10.14077832,2559.7,2559.1,2.4001]
[1726881430455,0.40737832,2559.7,2559.1,2.4001]
[1726881431849,0.55,2559.5,2558.7,2.4001]
[1726881432364,0.55,2559.5,2558.7,2.47825133]
[1726881432887,0.55,2559.5,2558.7,2.47824753]
[1726881433181,0.55,2559.5,2558.7,3.0190147]
[1726881433346,0.55,2559.5,2558.8,0.07814753]
[1726881433678,0.55,2559.5,2558.7,3.0190147]
[1726881435382,0.55,2559.5,2558.7,2.4001]
[1726881435590,2.475,2559.2,2558.7,2.4001]
[1726881435741,0.55,2559.1,2558.4,2.3784]
[1726881435938,0.5991984,2559.1,2558.4,2.3784]
[1726881436356,0.5991984,2559.1,2558.5,0.07816158]
[1726881436558,0.5991984,2559.1,2558.6,2.3784]
[1726881437979,0.0491984,2559.1,2558.6,2.3784]
[1726881438481,0.04906954,2559.0,2558.6,2.3784]
[1726881438646,0.55,2559.3,2558.6,2.3784]
[1726881438845,0.04904538,2558.9,2558.6,2.3784]
[1726881439080,0.55,2559.3,2558.6,2.3784]
[1726881439081,0.9572841,2559.3,2558.6,2.3784]
[1726881439298,0.9572841,2559.3,2557.7,0.005]
[1726881439299,0.04900266,2558.8,2558.1,2.3784]
[1726881439501,0.9572841,2559.3,2558.1,2.3784]
[1726881439502,2.475,2558.7,2558.1,2.3784]
[1726881439794,2.52397052,2558.7,2558.1,2.3784]
[1726881440001,2.52397052,2558.7,2557.8,2.3784]
[1726881440197,2.52397052,2558.7,2557.9,0.60942995]
[1726881440405,2.52397052,2558.7,2557.9,4.3203294]
[1726881442598,0.55,2558.6,2557.8,2.3784]
[1726881442955,0.55,2558.4,2557.8,2.3784]
[1726881443281,0.04880278,2558.3,2557.8,2.3784]
[1726881443891,2.475,2558.2,2557.8,2.3784]
[1726881444206,0.04875974,2558.2,2558.1,6.08929945]
[1726881444360,7.37,2559.1,2558.1,4.39569062]
[1726881444559,7.37,2559.1,2558.7,2.3784]
[1726881444762,0.04244326,2559.0,2558.7,2.3784]
[1726881445200,2.475,2559.2,2558.7,2.3784]
[1726881445371,0.04095566,2558.9,2558.7,2.3784]
[1726881445769,0.55,2559.1,2558.7,2.3784]
[1726881446084,0.04090645,2559.0,2558.7,2.3784]
[1726881446465,0.04090645,2559.0,2558.6,3.71089945]
[1726881446813,0.55,2558.6,2557.8,3.71089945]
[1726881447106,0.55,2558.6,2557.9,0.44976222]
[1726881447401,0.0411397,2558.5,2558.0,3.71089945]
[1726881447903,0.0411397,2558.5,2558.1,0.07817227]
[1726881448269,0.0411397,2558.5,2558.0,3.71089945]
[1726881448270,0.0411397,2558.5,2558.0,3.78907173]
[1726881448468,0.0411397,2558.5,2558.1,2.3784]
[1726881448872,0.0411397,2558.5,2558.1,2.45657228]
[1726881449070,0.0411397,2558.5,2558.1,2.3784]
[1726881449606,0.0411397,2558.5,2558.0,3.71089945]
[1726881450213,2.2515,2558.3,2557.7,2.4119]
[1726881450815,0.040906,2558.2,2557.7,2.4119]
[1726881451318,0.55,2558.0,2557.7,0.005]
[1726881451661,0.0407908,2557.9,2557.7,0.005]
[1726881452917,2.8015,2557.8,2557.7,0.005]
[1726881453267,2.84210912,2557.8,2557.7,0.005]
[1726881453471,0.04060912,2557.8,2557.7,0.005]
[1726881453807,0.55,2557.9,2557.7,0.005]
[1726881454016,0.03777904,2557.8,2557.7,0.005]
[1726881454991,2.2515,2558.0,2557.7,0.005]
[1726881455293,0.03773206,2557.9,2557.7,0.005]
[1726881455926,0.55,2557.8,2557.7,0.005]
[1726881456235,0.58770313,2557.8,2557.7,0.005]
[1726881457896,2.89570313,2557.8,2557.7,0.005]
[1726881458102,5.89570313,2557.8,2557.7,0.005]
[1726881458306,5.89570313,2557.8,2556.2,0.005]
[1726881458307,3.58770313,2557.8,2556.2,0.005]
[1726881458646,2.858,2556.2,2555.2,0.0443074]
[1726881458845,12.96779945,2556.3,2555.2,0.0443074]
[1726881458846,2.345,2555.7,2555.2,0.0443074]
[1726881458995,0.55,2555.7,2555.2,0.0443074]
[1726881459195,0.4073135,2556.0,2555.3,6.23492673]
[1726881459437,0.4073135,2556.0,2555.6,3.71089945]
[1726881459604,0.4073135,2556.0,2555.9,3.71089945]
[1726881459805,0.4073135,2556.0,2555.9,6.05935814]
[1726881460005,0.4073135,2556.0,2555.9,4.79054423]
[1726881460221,0.4073135,2556.0,2555.9,4.31610132]
[1726881460554,0.4073135,2556.0,2555.9,4.95339954]
[1726881460849,0.4073135,2556.0,2555.9,4.31610132]
[1726881461029,0.4073135,2556.0,2555.9,3.71089945]
[1726881461234,0.4073135,2556.0,2555.9,6.05269945]
[1726881461633,0.4073135,2556.0,2555.9,6.13092189]
[1726881461806,0.4073135,2556.0,2555.9,9.13092189]
[1726881462006,0.4073135,2556.0,2555.9,9.61751521]
[1726881462420,0.6126,2556.6,2555.9,7.27571521]
[1726881462643,0.6126,2556.6,2556.5,6.05269945]
[1726881462855,0.6126,2556.6,2556.5,6.13090988]
[1726881463346,0.6126,2556.6,2556.5,6.05269945]
[1726881464045,0.6126,2556.6,2556.5,6.92360624]
[1726881464557,2.3478,2557.8,2556.5,6.92360624]
[1726881465064,0.55,2557.7,2556.5,6.92360624]
[1726881465959,0.55,2557.7,2556.5,2.3418]
[1726881466265,3.55,2557.7,2556.5,2.3418]
[1726881466617,0.55,2556.9,2555.6,0.49994209]
[1726881466820,0.55,2556.9,2555.5,2.3418]
[1726881466821,2.3478,2556.8,2555.5,2.3418]
[1726881467061,3.55,2556.7,2555.5,2.3418]
[1726881467364,2.3478,2556.6,2555.1,2.3418]
[1726881467575,0.55,2556.5,2555.2,0.3850813]
[1726881467862,0.55,2556.5,2555.7,0.005]
[1726881470944,0.55,2556.1,2555.7,0.005]
[1726881472182,2.3686,2556.0,2555.7,0.005]
[1726881472388,2.9186,2555.9,2555.7,0.005]
[1726881472983,0.55,2555.7,2555.2,0.0443074]
[1726881473136,0.55,2555.5,2555.2,0.0443074]
[1726881474182,2.3686,2555.4,2555.0,0.63851975]
[1726881474335,0.55,2555.3,2555.0,0.63851975]
[1726881475171,0.55,2555.1,2555.0,0.63851975]
[1726881476280,0.40556629,2555.4,2554.3,0.0443074]
[1726881476281,2.8423,2554.9,2554.3,0.0443074]
[1726881480800,2.2923,2554.9,2554.3,0.0443074]
[1726881481619,0.40556629,2555.4,2554.8,4.58180624]
[1726881481797,0.40745127,2555.7,2555.3,4.58180624]
[1726881481978,0.40745127,2555.7,2555.4,0.07824485]
[1726881482162,2.2923,2556.4,2555.6,6.87370624]
[1726881482364,2.2923,2556.4,2555.7,0.07823677]
[1726881482600,2.2923,2557.3,2555.7,0.07823677]
[1726881482905,2.2923,2557.3,2555.9,4.58180624]
[1726881483112,2.2923,2557.3,2556.0,0.07822042]
[1726881483698,2.2923,2557.3,2555.7,0.6951943]
[1726881484372,0.55,2557.2,2555.7,0.6951943]
[1726881485089,2.2923,2557.3,2555.9,4.58180624]
[1726881485262,2.2923,2557.3,2556.0,0.45818062]
[1726881485465,2.2923,2557.3,2556.1,0.07822366]
[1726881485803,2.2923,2557.3,2556.0,0.45818062]
[1726881486032,2.2923,2557.3,2556.3,2.2919]
[1726881486197,2.2923,2557.3,2556.4,0.07821265]
[1726881486519,2.2923,2557.7,2556.4,5.35521078]
[1726881487778,0.55,2557.6,2556.4,5.35521078]
[1726881488239,0.577885,2557.6,2556.4,5.35521078]
[1726881488715,0.577885,2557.6,2556.0,2.75008062]
[1726881488716,0.55,2557.4,2556.0,2.75008062]
[1726881488891,0.55,2557.4,2556.1,4.66003269]
[1726881489067,0.55,2557.4,2556.4,4.58180624]
[1726881489271,2.320185,2557.5,2556.6,2.2919]
[1726881489595,2.320185,2557.5,2556.7,0.07820265]
[1726881489779,2.320185,2557.5,2556.7,4.89701916]
[1726881489964,0.027885,2557.5,2556.8,0.07820199]
[1726881490169,0.027885,2557.5,2557.3,4.58180624]
[1726881490396,0.027885,2557.5,2557.4,2.34508758]
[1726881491241,0.0444187,2558.5,2557.4,3.07817057]
[1726881491514,0.0444187,2558.5,2557.7,4.58180624]
[1726881491914,0.0444187,2558.5,2557.5,3.03289768]
[1726881492127,0.03667669,2558.4,2557.6,3.0]
[1726881492273,0.03667669,2558.4,2557.5,2.2669]
[1726881492825,0.03667669,2558.4,2556.0,5.09441808]
[1726881492826,0.03667669,2558.4,2557.0,7.36131808]
[1726881493129,0.55,2558.3,2557.1,0.73613181]
[1726881493274,0.58452807,2558.3,2557.1,0.73613181]
[1726881494394,0.55,2558.1,2557.0,7.36131808]
[1726881494673,0.03444369,2558.0,2557.0,7.36131808]
[1726881495469,0.55,2557.7,2556.6,7.56991808]
[1726881495872,0.55,2557.5,2556.6,7.56991808]
[1726881496372,0.03429862,2557.4,2556.6,7.56991808]
[1726881498074,0.55,2557.7,2556.6,7.56991808]
[1726881498509,0.55,2557.5,2556.6,7.56991808]
[1726881498812,0.55,2557.5,2556.6,8.32690989]
[1726881499038,0.04657042,2557.4,2556.6,8.32690989]
[1726881499183,0.55,2557.7,2556.6,8.32690989]
[1726881499600,0.59656713,2557.7,2556.6,8.32690989]
[1726881499804,0.55,2557.7,2556.6,8.32690989]
[1726881500310,0.60121839,2557.7,2556.6,8.32690989]
[1726881501210,0.55,2557.7,2556.6,8.32690989]
[1726881501627,0.55,2557.7,2556.3,3.0]
[1726881501805,7.37,2558.1,2556.3,3.0]
[1726881501806,0.55,2557.5,2556.3,3.0]
[1726881502206,0.55,2557.5,2556.2,7.56991808]
[1726881504241,2.986,2557.7,2556.2,7.56991808]
[1726881505341,2.986,2557.7,2556.3,0.75699181]
[1726881505512,2.986,2557.7,2556.4,0.07821058]
[1726881506217,2.436,2557.7,2556.3,0.75699181]
[1726881507553,0.55,2557.6,2556.3,0.75699181]
[1726881508158,2.436,2557.7,2556.6,5.09441808]
[1726881508358,2.436,2557.7,2556.7,0.58764061]
[1726881508658,2.436,2557.7,2556.7,0.50944181]
[1726881508812,9.806,2558.1,2556.8,2.4755]
[1726881509022,9.806,2558.1,2557.0,5.09441808]
[1726881509325,7.37,2558.1,2557.2,2.4755]
[1726881509554,7.37,2558.1,2557.3,0.33355438]
[1726881509775,0.03940324,2558.0,2557.3,0.25536875]
[1726881510262,2.4082,2558.4,2557.3,0.25536875]
[1726881510263,2.4082,2558.4,2557.4,0.07818573]
[1726881510412,2.4082,2558.4,2557.3,0.25536875]
[1726881510619,0.03672039,2558.3,2557.3,0.25536875]
[1726881511055,0.55,2558.2,2557.3,0.25536875]
[1726881511444,0.55,2558.0,2557.3,0.25536875]
[1726881511965,0.03942634,2557.9,2557.3,0.25536875]
[1726881512449,0.55,2558.2,2557.2,2.4755]
[1726881512614,2.4082,2558.4,2557.2,2.4755]
[1726881512615,0.55,2557.7,2557.2,2.4755]
[1726881512815,0.55,2558.3,2557.2,2.4755]
[1726881513052,0.55,2558.1,2557.2,2.4755]
[1726881513568,0.55,2557.9,2557.2,2.4755]
[1726881513928,0.55,2557.7,2557.2,2.4755]
[1726881514126,0.5894117,2557.7,2557.2,2.4755]
[1726881514330,0.55,2557.7,2557.2,2.4755]
[1726881514643,2.4082,2558.4,2557.3,0.07819746]
[1726881514828,0.03939288,2557.7,2557.2,2.4755]
[1726881515028,0.55,2558.3,2557.2,2.4755]
[1726881515433,0.55,2558.1,2557.2,2.4755]
[1726881515842,0.03943544,2558.0,2557.2,2.4755]
[1726881516048,0.03943544,2558.0,2557.3,0.07818892]
[1726881516352,0.55,2557.8,2557.2,2.4755]
[1726881516552,0.55,2557.8,2556.9,2.3525]
[1726881516553,0.0394095,2557.7,2556.9,2.3525]
[1726881517354,0.55,2557.6,2556.6,6.93312976]
[1726881517560,0.55,2557.7,2556.6,6.93312976]
[1726881517713,0.55,2557.7,2556.6,2.3525]
[1726881518060,0.5,2557.7,2556.6,2.3525]
[1726881518233,2.3333,2557.6,2556.6,2.3525]
[1726881518981,2.3333,2557.6,2556.6,2.58775]
[1726881519276,2.3333,2557.6,2556.7,0.07821166]
[1726881520175,0.55,2557.5,2556.6,2.58775]
[1726881520376,0.55,2557.5,2556.6,2.3525]
[1726881521363,0.55,2557.5,2556.3,3.10949181]
[1726881523644,0.55,2557.3,2556.3,3.10949181]
[1726881524684,0.55,2557.1,2555.8,2.3525]
[1726881524870,0.55,2556.9,2555.8,2.3525]
[1726881525072,0.55,2556.9,2555.9,0.07823179]
[1726881525271,0.55,2556.9,2555.9,0.83405602]
[1726881526074,2.3333,2557.0,2556.1,4.58062976]
[1726881526289,7.37,2557.4,2556.2,0.07821864]
[1726881526290,0.55,2557.2,2556.2,0.07821864]
[1726881526449,2.3333,2557.3,2556.2,0.07821864]
[1726881526650,2.3333,2557.7,2556.6,2.3525]
[1726881526850,2.3333,2557.7,2556.8,4.58062976]
[1726881527049,0.0444187,2558.5,2556.9,2.3525]
[1726881527050,0.40367844,2558.3,2556.9,2.3525]
[1726881527355,0.40367844,2558.3,2557.1,4.58062976]
[1726881527551,0.40367844,2558.3,2557.2,2.43068889]
[1726881527747,2.3333,2558.4,2557.2,2.43068889]
[1726881527960,2.3333,2558.4,2557.3,0.70113187]
[1726881528383,2.3333,2558.4,2557.2,2.3525]
[1726881529750,2.3333,2558.4,2556.8,4.58062976]
[1726881529751,0.55,2558.1,2556.9,2.349]
[1726881530284,0.55,2557.9,2556.9,2.349]
[1726881532888,0.55,2557.9,2557.0,0.07819501]
[1726881533092,2.2938,2558.0,2557.0,0.07819501]
[1726881533449,0.55,2558.3,2557.1,2.349]
[1726881533747,0.55,2558.3,2557.2,0.07818925]
[1726881534655,0.55,2558.3,2557.1,2.349]
[1726881534960,0.05702978,2558.2,2557.1,2.349]
[1726881535249,0.55,2558.3,2557.1,2.349]
[1726881535548,0.60121642,2558.3,2557.2,0.30497825]
[1726881538070,0.55,2558.1,2557.2,0.30497825]